Cogmind - Beta 13 @@@ ROGUE MODE // 2024.04.27 @ 15:43:27 Player: Waste Result: Destroyed by KY-20H(R) with Subdweller Laser Performance ------------- Evolutions (0) 0 Regions Visited (2) 400 Robots Destroyed (24) 120 Value Destroyed (729) 729 Prototype IDs (12) 240 Alien Tech Used (0) 0 Bonus (0) 0 TOTAL SCORE: 1489 Bonus ------- None Cogmind --------- Core Integrity 0/250 Matter 270/300 Energy 250/250 System Corruption 3% Temperature Warm (190) Movement Treading (320) Ox2 Location -10/Subcaves Parts ------- > --- POWER (1) -------- Ion Engine > --- PROPULSION (2) --- Light Treads Light Treads > --- UTILITY (2) ------ Huge Storage Unit Targeting Computer > --- WEAPON (2) ------- Subdweller Beam Cannon Slug Cannon > --- INVENTORY (25) --- Subdweller Power Source Light Treads Light Treads Aluminum Leg Aluminum Leg Aluminum Leg Aluminum Leg Flightbrick Small Storage Unit Medium Laser Medium Laser Medium Laser Medium Laser Small Laser Subdweller Laser Subdweller Beam Cannon Battle Rifle Subdweller Machine Gun Subdweller Shrapnel Launcher Shrapnel Trap Peak State ------------ > --- POWER ------------ Ion Engine > --- PROPULSION ------- Light Treads Light Treads > --- UTILITY ---------- Huge Storage Unit Targeting Computer > --- WEAPON ----------- Subdweller Machine Gun Slug Cannon > --- INVENTORY -------- Subdweller Power Source Light Treads Light Treads Light Treads Aluminum Leg Aluminum Leg Aluminum Leg Aluminum Leg Flightbrick Small Storage Unit Medium Laser Medium Laser Medium Laser Medium Laser Small Laser Subdweller Laser Subdweller Beam Cannon Battle Rifle Subdweller Shrapnel Launcher Shrapnel Trap [Rating: 17] Favorites ----------- Power Light Ion Engine Engine Light Ion Engine Propulsion Light Treads Treads Light Treads Leg Aluminum Leg Wheel Compact Wheel Utility Huge Storage Unit Storage Huge Storage Unit Processor Targeting Computer Weapon Subdweller Machine Gun Energy Gun Medium Laser Energy Cannon Subdweller Beam Cannon Ballistic Gun Subdweller Machine Gun Ballistic Cannon Slug Cannon Impact Weapon Hammer Build | -11 -10 -10 ------- Run | Yrd Mat Sub Slots Evolved . | . . . Power . | . . . Propulsion . | . . . Utility . | . . . Weapon . | . . . Parts Attached 20 | . 6 14 Power 3 | . . 3 Engine 3 | . . 3 Core . | . . . Reactor . | . . . Propulsion 6 | . 2 4 Treads 4 | . . 4 Leg . | . . . Wheel 2 | . 2 . Hover . | . . . Flight . | . . . Utility 2 | . 2 . Device . | . . . Storage 1 | . 1 . Processor 1 | . 1 . Hackware . | . . . Protection . | . . . Artifact . | . . . Weapon 9 | . 2 7 Energy Gun 2 | . 2 . Energy Cannon 2 | . . 2 Ballistic Gun 3 | . . 3 Ballistic Cannon 1 | . . 1 Launcher . | . . . Special Weapon . | . . . Impact Weapon 1 | . . 1 Slashing Weapon . | . . . Piercing Weapon . | . . . Special Melee Weapon . | . . . Unidentified Prototypes . | . . . Parts Lost 7 | . . 7 Power 3 | . . 3 Propulsion 3 | . . 3 Utility . | . . . Weapon 1 | . . 1 Highest Loss Streak 2 | . . 2 To Critical Strikes . | . . . Average Slot Usage (%) 98 | . 95 99 Engine 13 | . 14 13 Treads 22 | . . 26 Wheel 4 | . 25 . Storage 14 | . 14 14 Processor 13 | . 9 14 Energy Gun 3 | . 21 . Energy Cannon 6 | . . 7 Ballistic Gun 9 | . 6 10 Ballistic Cannon 4 | . . 5 Impact Weapon 3 | . . 4 Naked Turns . | . . . Heaviest Build 100 | 10 87 100 Greatest Support 40 | 20 32 40 Greatest Overweight (x) 5 | . 4 5 Average Overweight (x) 2 | . 1 2 Largest Inventory Capacity 25 | . 25 25 Average Capacity 24 | . 23 25 Most Carried 25 | . 18 25 Average Carried 21 | . 14 22 Final Capacity 25 | 8 25 25 Final Carried 23 | 6 18 23 Class Distribution -------------------- 97% | Mutant Dominant Class ---------------- Mutant | -10/Materials Mutant | -10/Subcaves Resources | -11 -10 -10 ----------- Run | Yrd Mat Sub Matter Collected 777 | 189 110 478 Remotely . | . . . Salvage Created 909 | . 278 631 Parts 56 | . 11 45 Haulers Intercepted 2 | . 2 . Recyclers Shooed 1 | . 1 . Parts Field Recycled . | . . . Retrieved Matter . | . . . Parts Self-Destructed 12 | . . 12 Prevented . | . . . Kills | -11 -10 -10 ------- Run | Yrd Mat Sub Combat Hostiles Destroyed 21 | . 4 17 Guns 11 | . 4 7 Cannons 10 | . . 10 Classes Destroyed 5 | . 3 2 Hauler 2 | . 2 . Watcher 1 | . 1 . Swarmer 4 | . . 4 Grunt 4 | . 4 . Subdweller 13 | . . 13 Best Kill Streak 4 | . 2 4 Combat Bots Only 4 | . 2 4 Max Kills in Single Turn 2 | . 1 2 Gunslinging . | . . . Exploded . | . . . Melee . | . . . Uniques/NPCs Destroyed . | . . . Combat | -11 -10 -10 -------- Run | Yrd Mat Sub Hostile Shots Fired 99 | . 15 84 Missed 38 | . 2 36 Damage Taken 1208 | . 159 1049 Core 252 | . 42 210 Absorbed by Shields . | . . . Core Remaining (%) 100 | 100 . . Volleys Fired 78 | . 30 48 Largest 2 | . 2 2 Hottest 128 | . 100 128 Shots Fired 157 | . 60 97 Gun 99 | . 60 39 Cannon 58 | . . 58 Launcher . | . . . Special . | . . . Kinetic 85 | . 29 56 Thermal 72 | . 31 41 Explosive . | . . . Electromagnetic . | . . . Robot Hit Streak 18 | . 10 18 Robot Miss Streak 3 | . 3 2 Penetration Max . | . . . Secondary Targets . | . . . Shots Hit Robots 99 | . 45 54 Core Hits 36 | . 16 20 Critical Kills 1 | . . 1 Critical Parts Destroyed . | . . . Critical Strikes 7 | . 1 6 Burn 2 | . 1 1 Destroy 5 | . . 5 Melee Attacks 55 | . . 55 Impact 55 | . . 55 Slashing . | . . . Piercing . | . . . Sneak Attacks . | . . . Combat Hostiles . | . . . Follow-up Attacks . | . . . Damage Inflicted 1902 | . 462 1440 Guns 937 | . 462 475 Cannons 965 | . . 965 Explosions . | . . . Melee . | . . . Ramming . | . . . Kinetic 912 | . 188 724 Thermal 990 | . 274 716 Explosive . | . . . Electromagnetic . | . . . Impact . | . . . Slashing . | . . . Piercing . | . . . Highest Corruption 3 | . 3 3 Average Corruption 2 | . 2 3 Corruption Purged . | . . . Corruption Blocked . | . . . Effects 113 | . 18 95 Message Errors 30 | . 6 24 Matter Fused 30 | . 3 27 Heat Flow Errors 9 | . 1 8 Energy Discharges 16 | . 2 14 Parts Fused 2 | . . 2 Data Loss (minor) 13 | . 3 10 Data Loss (major) 7 | . . 7 Misfires 3 | . 1 2 Alerts 2 | . 1 1 Weapon Failures 1 | . 1 . Overload Shots . | . . . Overflow Damage 10 | . . 10 Projectiles 10 | . . 10 Explosions . | . . . Melee . | . . . Knockbacks 4 | . . 4 Impact . | . . . Kinetic 4 | . . 4 Secondary . | . . . Self-Inflicted Damage . | . . . Shots . | . . . Rammed . | . . . Targets Rammed . | . . . Kicked . | . . . Crushed . | . . . Highest Temperature 259 | . 183 259 Average Temperature 71 | . 70 73 Received Heat Transfer 225 | . 90 135 Effects 2 | . . 2 Interference 2 | . . 2 Siege Activations . | . . . Robots Corrupted . | . . . Combat Hostiles . | . . . Parts Fried . | . . . Impact Corruptions . | . . . Robots Melted . | . . . Combat Hostiles . | . . . Parts Melted 4 | . 2 2 Heat Transferred 1924 | . 851 1073 Parts Sabotaged . | . . . Parts Stolen . | . . . Parts Stripped . | . . . Power Chain Reactions . | . . . Alert | -11 -10 -10 ------- Run | Yrd Mat Sub Peak Influence 117 | . 117 . Initial . | . . . Average 62 | . 62 . Maximum Alert Level . | . . . Low Security (%) 100 | . 100 . Level 1 . | . . . Level 2 . | . . . Level 3 . | . . . Level 4 . | . . . Level 5 . | . . . High Security . | . . . Max Security . | . . . Squads Dispatched 2 | . 2 . Investigation . | . . . Extermination . | . . . Reinforcement 2 | . 2 . Assault . | . . . Garrison . | . . . Intercept . | . . . Searches Triggered . | . . . Construction Impeded . | . . . Haulers Reinforced . | . . . Active Scanning Responses . | . . . Cargo Convoy Interrupts . | . . . Stealth | -11 -10 -10 --------- Run | Yrd Mat Sub Distress Signals . | . . . Communications Jammed . | . . . Distress Signals . | . . . Times Spotted 35 | . 10 25 Peak Tracking Total 5 | . 2 5 Tactical Retreats 1 | . . 1 Traps | -11 -10 -10 ------- Run | Yrd Mat Sub Traps Triggered 4 | . 2 2 Indirectly . | . . . Trap Hack Attempts . | . . . Triggered . | . . . Disarmed . | . . . Reprogrammed . | . . . Reused . | . . . Traps Extracted . | . . . Installed . | . . . Triggered . | . . . Most Traps Carried 1 | . . 1 Machines | -11 -10 -10 ---------- Run | Yrd Mat Sub Machines Disabled 1 | . . 1 Max in Single Turn 1 | . . 1 Machines Repaired . | . . . Machines Dismantled . | . . . Machines Sabotaged . | . . . Overloaded Fab Kills . | . . . Hacking | -11 -10 -10 --------- Run | Yrd Mat Sub Machines Accessed 7 | . 5 2 Terminals 5 | . 5 . Fabricators . | . . . Repair Stations . | . . . Recycling Units . | . . . Scanalyzers . | . . . Garrison Access . | . . . Total Hacks 13 | . 10 3 Successful 8 | . 5 3 Failed 5 | . 5 . Catastrophic 2 | . 2 . Database Lockouts . | . . . Manual 7 | . 7 . Terminals 10 | . 10 . Fabricators . | . . . Repair Stations . | . . . Recycling Units . | . . . Scanalyzers . | . . . Garrison Access . | . . . Terminal Hacks 7 | . 4 3 Record 2 | . . 2 Robot Analysis 2 | . 2 . Prototype ID Bank 1 | . 1 . Zone Layout 1 | . 1 . Derelict Proto ID Bank 1 | . . 1 Fabricator Hacks . | . . . Repair Station Hacks . | . . . Recycling Unit Hacks . | . . . Scanalyzer . | . . . Garrison Access Hacks . | . . . Unauthorized Hacks 1 | . 1 . Terminals 1 | . 1 . Botnet 1 | . 1 . Fabricators . | . . . Repair Stations . | . . . Recycling Units . | . . . Scanalyzers . | . . . Garrison Access . | . . . Data Cores Recovered . | . . . Used . | . . . Hacking Detections 4 | . 4 . Full Trace Events . | . . . Feedback Events . | . . . Feedback Blocked . | . . . Robot Schematics Acquired . | . . . Robots Built . | . . . Authchips . | . . . Time . | . . . Total Robot Build Rating . | . . . Part Schematics Acquired . | . . . Parts Built . | . . . Authchips . | . . . Time . | . . . Total Part Build Rating . | . . . Parts Repaired . | . . . Time . | . . . Parts Recycled . | . . . Recycled Matter . | . . . Retrieved Matter . | . . . Retrieved Components . | . . . Parts Scanalyzed . | . . . Part Schematics Acquired . | . . . Parts Damaged . | . . . Bothacking | -11 -10 -10 ------------ Run | Yrd Mat Sub Used RIF Installer . | . . . Robots Hacked . | . . . Non-combat . | . . . Combat . | . . . Robot Hacks Applied . | . . . Relay Couplers Released . | . . . Fabnet Peak Effective % . | . . . Robots Rewired . | . . . Allies Hacked . | . . . Hacks Repelled . | . . . Allies | -11 -10 -10 -------- Run | Yrd Mat Sub Total Allies . | . . . Largest Group . | . . . Highest-Rated Group . | . . . Highest-Rated Ally . | . . . Total Orders . | . . . Ally Attacks . | . . . Total Damage . | . . . Kills . | . . . Allies Corrupted . | . . . Allies Melted . | . . . Intel | -11 -10 -10 ------- Run | Yrd Mat Sub Robot Analysis Total 2 | . 2 . Derelict Logs Recovered 2 | . . 2 Drone Launches . | . . . Drone Recoveries . | . . . Exploration | -11 -10 -10 ------------- Run | Yrd Mat Sub Turns Passed 6070 | . 922 5148 Spaces Moved 1876 | 1 327 1548 Core . | . . . Treads 1428 | . . 1428 Legs 52 | 1 51 . Wheels 396 | . 276 120 Hover . | . . . Flight . | . . . Fastest Speed 120 | 120 120 130 Average Speed 276 | 120 131 306 Slowest Speed 480 | 120 400 480 Overloaded Moves . | . . . Propulsion Burnouts . | . . . Robots Hopped . | . . . Cave-ins Triggered . | . . . Exploration Rate (%) 51 | 2 71 81 Regions Visited 2 Branch Regions 1 Pre-discovered Areas 1 | . . 1 Known Exits Taken . | . . . Unknown Exits Taken 2 | 1 1 . Scrap Searched 11 | . . 11 Spaces Dug 4 | . . 4 Terrain Destroyed 9 | . . 9 Melee 4 | . . 4 Projectile 5 | . . 5 AOE . | . . . Terrain Rammed . | . . . Walls Destroyed . | . . . Machines Disabled . | . . . Actions | -11 -10 -10 --------- Run | Yrd Mat Sub Total 2514 | . 762 1752 Wait 461 | . 386 75 Move 1874 | . 326 1548 Hop . | . . . Pick Up 21 | . 11 10 Fast Attach 5 | . 4 1 Attach 8 | . . 8 Detach 2 | . 1 1 Swap 7 | . 2 5 Drop 3 | . 2 1 Fire 78 | . 30 48 Melee 55 | . . 55 Ram . | . . . Kick . | . . . Crush . | . . . Escape Stasis . | . . . Rewire . | . . . Trap . | . . . Miscellaneous . | . . . Route ------- -11/Scrapyard -10/Materials (discovered 4 exits: [*Mat x2] / [*Min] / *Sub) -10/Subcaves (discovered 2 exits: [*Mat] / [*Rec]) History --------- Turn | Location | Event 1 | -11/Scrapyard | Discovered new exit (range 0) 1 | -11/Scrapyard | Entered Materials 182 | -10/Materials | Discovered new exit (range 11) 194 | -10/Materials | Discovered new exit (range 14) 273 | -10/Materials | Discovered new exit (range 20) 321 | -10/Materials | Build established: Mutant 914 | -10/Materials | Discovered new exit (range 7) 923 | -10/Materials | Entered Subcaves 940 | -10/Subcaves | Discovered new exit (range 5) 1021 | -10/Subcaves | A swath of the cavern ceiling suddenly collapsed 1353 | -10/Subcaves | Shifting Twisted Machinery released Sub. Optics 1355 | -10/Subcaves | Shifting Twisted Machinery released Sub. Laser 1520 | -10/Subcaves | Visited 4L-MR0's lab 1560 | -10/Subcaves | Found Prototype Flight Unit 1580 | -10/Subcaves | Identified Flightbrick 1686 | -10/Subcaves | Shifting Twisted Machinery released Sub. Beam Cannon 1690 | -10/Subcaves | Shifting Twisted Machinery released Battle Rifle 1867 | -10/Subcaves | A swath of the cavern ceiling suddenly collapsed 3182 | -10/Subcaves | Shifting Twisted Machinery released Sub. Monowheel 3422 | -10/Subcaves | Learned location of Zion (-7) 3422 | -10/Subcaves | Met a Zionite searching for "candidates" 4515 | -10/Subcaves | Core integrity fell below 50% 4803 | -10/Subcaves | Learned location of 1 exit from Materials 4851 | -10/Subcaves | Visited Clippyterm 4938 | -10/Subcaves | Disturbed a concealed Subdweller 4955 | -10/Subcaves | Core integrity fell below 20% 5846 | -10/Subcaves | Discovered new exit (range 14) 6009 | -10/Subcaves | A Subdweller sparked back to life 6009 | -10/Subcaves | A Subdweller sparked back to life 6071 | -10/Subcaves | Destroyed by KY-20H(R) with Subdweller Laser Last Messages --------------- 05846_ EXIT=FOUND 05849_ HFQP:,C7LUNIHK#Q#EE#OAGANKI7& 05942_ System corrupted: Matter fused (-7). 05996_ System corrupted: Substantial component data lost. 06009_ TX-EXK(R) destroyed. 06009_ KY-20H(R) creaks and sparks as it begins to move. 06009_ ZS-ICP(R) creaks and sparks as it begins to move. 06016_ KY-20H(R) affixes Scrap Shield Fragment to Scrap Shield. 06018_ System corrupted: Substantial component data lost. 06028_ ZS-ICP(R) destroyed. 06032_ Acquired 25 matter. 06056_ KY-20H(R) suffers critical hit (Destroy). 06059_ KY-20H(R) knocked back. 06061_ System corrupted: Heat flow error (+148). 06062_ KY-20H(R) affixes Scrap Shield Fragment to Scrap Shield. 06062_ KY-20H(R) suffers critical hit (Destroy). 06062_ KY-20H(R) knocked back. 06065_ KY-20H(R) suffers critical hit (Destroy). 06065_ KY-20H(R) knocked back. 06068_ Destroyed Scrap Shield. Map ----- +----------------------------------------------------+ | ????????????????# ### "= " #? | | ????????????????# =%"""" #? | | ????????????????# ## = #? | | ????????????????# ### ## ##? | | ???????????????# # #?# % ### #?? | | ??????????????? ### ###?# % #?## ? | | ????????????????##????## ????# ##??# ? | | ???????????????????????### ????## # %##### # | | ????????????????????????? ?????# ## ""##" #? | | ???????????????????????? ???? ### """""### | | ??????????????????????? ????### #?# # #" #?#" | | ??????????????????????#" ??????###?# ######## | | ??????????????????????#" " ????####??# ###"" | | ???????????????????????"""" ????# #### """" | | ??????????????????????????#